bitfinex-derivatives/quotes_ETHF0:USTF0_20230401
["timestamp","ask_amount","ask_price","bid_price","bid_amount"]
[1680363414533,1.68250454,1820.1,1819.9,1.0]
[1680363415033,0.86350454,1820.0,1819.9,1.0]
[1680363415235,1.68250454,1820.1,1819.9,1.0]
[1680363415732,0.86350454,1820.0,1819.9,1.0]
[1680363416434,1.68250454,1820.1,1819.9,1.0]
[1680363417127,0.86350454,1820.1,1819.9,1.0]
[1680363418133,0.86350454,1820.0,1819.9,1.0]
[1680363418833,0.86350454,1820.0,1819.8,45.02173954]
[1680363419232,0.86350454,1820.0,1819.8,41.81393954]
[1680363419427,0.86350454,1820.0,1819.8,45.02173954]
[1680363419628,0.86350454,1820.0,1819.9,6.04125189]
[1680363423037,0.86350454,1820.0,1819.8,43.58735535]
[1680363425040,0.86350454,1820.0,1819.8,45.02173954]
[1680363426238,0.86350454,1820.0,1819.8,40.37955535]
[1680363427047,0.86350454,1820.0,1819.8,39.55855535]
[1680363437246,0.86350454,1819.9,1819.8,39.55855535]
[1680363437948,0.86350454,1820.0,1819.8,39.55855535]
[1680363448551,0.86350454,1819.9,1819.8,39.55855535]
[1680363449548,1.6885705,1819.9,1819.8,0.55855535]
[1680363449747,1.6885705,1819.9,1819.6,1.43438419]
[1680363449748,1.97484563,1819.9,1819.6,1.43438419]
[1680363449948,0.86457599,1819.8,1819.7,39.1]
[1680363452853,1.68857599,1819.9,1819.7,39.1]
[1680363453056,0.86457599,1819.8,1819.7,39.1]
[1680363453744,1.68857599,1819.9,1819.7,39.1]
[1680363454157,0.86457599,1819.8,1819.7,39.1]
[1680363455958,0.86457599,1819.8,1819.5,5.46018419]
[1680363455959,2.68557599,1819.8,1819.5,4.64218419]
[1680363456146,5.89337599,1819.8,1819.4,7.06958419]
[1680363456345,0.8586024,1819.7,1819.4,3.06889305]
[1680363456560,0.824,1819.5,1819.4,3.06889305]
[1680363456960,0.824,1819.6,1819.4,3.06889305]
[1680363458862,0.824,1819.6,1819.4,1.63450886]
[1680363459057,0.824,1819.6,1819.3,43.74218419]
[1680363459655,0.824,1819.6,1819.3,45.39389577]
[1680363460753,0.824,1819.6,1819.4,1.0]
[1680363463465,0.824,1819.6,1819.3,45.39389577]
[1680363463764,0.824,1819.6,1819.4,1.0]
[1680363464061,0.824,1819.6,1819.4,39.1]
[1680363464363,0.824,1819.6,1819.5,1.0]
[1680363464664,0.824,1819.6,1819.4,39.1]
[1680363466965,0.819,1819.5,1819.4,39.1]
[1680363472166,3.78684563,1819.5,1819.0,0.54969755]
[1680363472369,0.819,1819.1,1818.9,3.2078]
[1680363472871,0.819,1819.1,1818.9,4.2078]
[1680363473271,0.819,1819.1,1818.9,3.2078]
[1680363473469,0.819,1819.1,1818.9,4.2078]
[1680363474169,0.819,1819.1,1818.9,4.82946077]
[1680363474471,0.819,1819.1,1818.9,4.76761531]
[1680363474671,0.819,1819.1,1818.9,3.76761531]
[1680363475971,0.82,1819.2,1818.9,4.58861531]
[1680363476165,0.82,1819.2,1819.0,1.0]
[1680363476973,0.82,1819.2,1818.9,3.76761531]
[1680363477668,0.82,1819.2,1818.9,0.55981531]
[1680363477877,0.03480094,1819.1,1818.8,5.67231612]
[1680363478170,1.82,1819.2,1818.8,5.67231612]
[1680363478470,0.82,1819.2,1818.8,5.67231612]
[1680363480983,1.82,1819.2,1818.8,5.67231612]
[1680363481280,0.82,1819.2,1818.8,5.67231612]
[1680363481473,0.82,1819.0,1818.8,5.3950058]
[1680363483083,0.82,1819.0,1818.8,2.1872058]
[1680363483376,0.82,1819.0,1818.7,1.0]
[1680363485276,0.82,1819.0,1818.6,5.0248]
[1680363485477,0.82,1819.0,1818.6,5.56795743]
[1680363486380,0.819,1818.8,1818.6,3.75095743]
[1680363486781,0.819,1818.8,1818.6,4.75095743]
[1680363487080,0.817,1818.9,1818.6,3.75095743]
[1680363487981,0.817,1818.9,1818.6,4.75095743]
[1680363489375,0.819,1819.1,1818.8,3.2078]
[1680363489574,0.819,1819.1,1818.9,1.0]
[1680363492079,0.819,1819.1,1818.8,4.2078]
[1680363492384,0.819,1819.1,1818.9,1.0]
[1680363492882,0.03485831,1819.0,1818.9,1.0]
[1680363495684,0.03485831,1819.0,1818.8,4.2078]
[1680363495983,0.03485831,1819.0,1818.9,1.0]
[1680363498285,0.03485831,1819.0,1818.8,5.0278]
[1680363499490,0.03485831,1819.0,1818.8,1.82]
[1680363503088,0.03485831,1819.0,1818.8,0.82]
[1680363506490,0.824,1818.9,1818.6,2.36715743]
[1680363506693,0.824,1818.9,1818.6,1.36715743]
[1680363506895,0.824,1818.9,1818.6,2.36715743]
[1680363507196,0.824,1818.9,1818.7,6.1768984]
[1680363507788,0.03490406,1818.8,1818.7,6.1768984]
[1680363511793,0.03490406,1818.8,1818.6,1.36715743]
[1680363511992,0.824,1818.7,1818.6,0.54315743]
[1680363512194,0.824,1818.7,1818.4,4.0308]
[1680363512400,0.824,1818.7,1818.4,5.64623449]
[1680363512790,0.824,1818.7,1818.4,28.04623449]
[1680363513297,0.82,1818.5,1818.4,27.22323449]
[1680363513498,0.82,1818.5,1818.4,24.01543449]
[1680363514297,0.82,1818.5,1818.4,24.56157046]
[1680363516989,0.824,1818.6,1818.4,24.56157046]
[1680363517797,0.824,1818.6,1818.4,2.16157046]
[1680363518101,0.824,1818.6,1818.2,8.9253]
[1680363518298,0.824,1818.6,1818.3,22.4]
[1680363518503,0.824,1818.6,1818.4,1.0]
[1680363518700,0.824,1818.6,1818.3,22.4]
[1680363518906,0.824,1818.6,1818.4,1.0]
[1680363519505,0.824,1818.6,1818.3,22.4]
[1680363519907,0.824,1818.6,1818.4,1.0]
[1680363520407,0.824,1818.6,1818.3,22.4]
[1680363522000,1.39748724,1818.6,1818.3,22.4]
[1680363522408,2.39748724,1818.6,1818.3,22.4]
[1680363522710,1.39748724,1818.6,1818.3,22.4]
[1680363523005,0.04619357,1818.5,1818.3,22.4]
[1680363523806,3.25399357,1818.5,1818.3,22.4]
[1680363524102,0.04619357,1818.5,1818.3,22.4]
[1680363524307,0.04619357,1818.5,1818.4,5.0318]
[1680363524609,1.39748724,1818.7,1818.4,10.98713131]
[1680363524906,1.39748724,1818.7,1818.5,1.0]
[1680363527210,0.57348724,1818.7,1818.5,1.0]
[1680363527610,2.25197566,1818.8,1818.5,1.0]
[1680363527814,1.39048724,1818.8,1818.5,1.0]
[1680363528512,1.38808028,1818.8,1818.5,1.0]
[1680363528718,2.2495687,1818.8,1818.5,1.0]
[1680363528919,1.38808028,1818.8,1818.5,1.0]
[1680363530220,2.2495687,1818.8,1818.5,1.0]
[1680363531023,1.38808028,1818.8,1818.5,1.0]
[1680363533219,2.2495687,1818.8,1818.5,1.0]
[1680363534026,1.38808028,1818.8,1818.5,1.0]
[1680363534627,2.2495687,1818.8,1818.5,1.0]
[1680363535327,1.38808028,1818.8,1818.5,1.0]
[1680363535529,2.2495687,1818.8,1818.5,1.0]
[1680363535825,1.38808028,1818.8,1818.5,1.0]
[1680363536327,2.2495687,1818.8,1818.4,11.52284967]
[1680363536825,2.2495687,1818.8,1818.5,1.0]
[1680363537127,1.43497566,1818.8,1818.5,1.821]
[1680363537526,1.43497566,1818.8,1818.5,0.821]
[1680363537728,1.43497566,1818.8,1818.5,1.821]
[1680363537925,0.04623955,1818.7,1818.5,1.821]
[1680363538427,0.61972679,1818.7,1818.5,0.821]
[1680363539023,1.44072679,1818.7,1818.4,3.74951836]
[1680363539727,1.44072679,1818.7,1818.5,5.7768148]
[1680363540631,5.51001521,1818.7,1818.5,5.7768148]
[1680363542330,0.57348724,1818.6,1818.5,5.7768148]
[1680363545235,0.86148842,1818.6,1818.5,5.7768148]
[1680363545434,1.86148842,1818.6,1818.5,5.7768148]
[1680363545737,0.86148842,1818.6,1818.5,5.7768148]
[1680363547138,1.68148842,1818.6,1818.5,5.7768148]
[1680363549530,2.68148842,1818.6,1818.4,0.54171836]
[1680363549741,0.5752087,1818.5,1818.3,22.4]
[1680363551436,1.43669712,1818.5,1818.3,22.4]
[1680363551634,1.3962087,1818.4,1818.3,22.4]
[1680363552033,2.25769712,1818.4,1818.0,4.64218419]
[1680363552227,1.39908957,1818.3,1818.0,4.2078]
[1680363552735,1.39908957,1818.3,1818.2,1.0]
[1680363553338,0.57508957,1818.3,1818.2,1.822]
[1680363553940,0.57508957,1818.3,1818.2,0.822]
[1680363554437,0.57508957,1818.3,1818.0,2.96350532]
[1680363554638,3.78288957,1818.3,1818.2,0.824]
[1680363555143,3.78288957,1818.3,1818.2,6.97211515]
[1680363556644,3.2078,1818.3,1818.2,6.97211515]
[1680363557341,3.2078,1818.3,1818.2,7.97211515]
[1680363557840,0.57508957,1818.4,1818.2,11.17991515]
[1680363558043,0.57508957,1818.5,1818.2,15.84891515]
[1680363558240,1.43657799,1818.6,1818.4,1.648]
[1680363558539,0.57508957,1818.6,1818.5,7.63214721]
[1680363567438,4.64437799,1818.7,1818.6,0.821]
[1680363567644,4.64437799,1818.7,1818.6,1.639]
[1680363567945,4.64437799,1818.7,1818.6,7.55103385]
[1680363568247,0.57516058,1818.8,1818.6,10.76083385]
[1680363568443,0.57516058,1818.8,1818.7,1.824]
[1680363568856,0.57516058,1818.8,1818.7,7.83478661]
[1680363569943,0.86274676,1818.9,1818.8,6.493]
[1680363570146,0.86274676,1819.0,1818.8,11.3448]
[1680363570346,0.86274676,1819.0,1818.9,0.824]
[1680363570741,0.86274676,1819.0,1818.9,6.73841077]
[1680363571348,0.86274676,1819.0,1818.9,7.73841077]
[1680363572443,0.86274676,1819.0,1818.9,8.00841077]
[1680363573246,0.86274676,1819.0,1818.9,7.00841077]
[1680363576557,4.07054676,1819.0,1818.9,7.00741077]
[1680363581248,4.07054676,1819.0,1818.9,5.91441077]
[1680363582754,4.11609098,1819.0,1818.9,5.91441077]
[1680363590368,0.04554422,1819.0,1818.9,5.91441077]
[1680363596370,0.90829098,1819.0,1818.9,5.91441077]
[1680363596573,4.11609098,1819.0,1818.9,5.91441077]
[1680363598476,4.11609098,1819.0,1818.9,7.00741077]
[1680363598772,0.90829098,1819.0,1818.9,1.093]
[1680363598975,0.04554422,1819.0,1818.9,1.093]
[1680363599176,0.04554422,1819.0,1818.9,6.89490084]
[1680363601367,0.90829098,1819.0,1818.9,6.89490084]
[1680363606380,0.89605813,1819.0,1818.9,6.89490084]
[1680363613980,1.18380691,1819.0,1818.9,6.89490084]
[1680363614172,0.03331137,1819.0,1818.9,6.89490084]
[1680363619284,0.86413639,1819.3,1819.1,5.493]
[1680363619482,0.86413639,1819.3,1819.2,6.592]
[1680363619681,0.86413639,1819.3,1819.2,12.68522005]
[1680363619883,4.64235616,1819.6,1819.2,12.68522005]
[1680363620088,3.2078,1819.6,1819.5,1.093]
[1680363620379,3.2078,1819.6,1819.5,7.4589656]
[1680363620778,3.2078,1819.6,1819.5,8.5579656]
[1680363621388,4.64235616,1819.8,1819.5,14.0509656]
[1680363621585,4.64235616,1819.8,1819.7,1.099]
[1680363621883,4.64235616,1819.8,1819.7,7.62517342]
[1680363622079,3.2078,1819.8,1819.7,6.62517342]
[1680363623578,3.2078,1819.8,1819.7,7.62517342]
[1680363623885,4.64235616,1820.0,1819.7,13.11817342]
[1680363624189,3.2078,1820.0,1819.9,1.099]
[1680363624579,3.2078,1820.0,1819.9,7.34742298]
[1680363630293,3.2078,1820.2,1819.9,7.34742298]
[1680363632483,3.2078,1820.2,1820.0,1.824]
[1680363632691,3.2078,1820.2,1820.0,0.824]
[1680363647002,3.2078,1820.2,1820.1,0.824]
[1680363647198,3.2078,1820.2,1820.1,0.74160001]
[1680363651420,4.35426382,1820.2,1820.1,0.74160001]
[1680363651607,3.2078,1820.2,1820.1,0.74160001]
[1680363652106,4.35426382,1820.2,1820.1,0.74160001]
[1680363657108,4.35426382,1820.2,1820.0,0.824]
[1680363660309,2.14646382,1820.1,1820.0,0.824]
[1680363660614,2.43455616,1820.1,1819.8,0.824]
[1680363660812,3.2078,1819.9,1819.8,0.824]
[1680363662011,1.14896526,1819.9,1819.8,0.824]
[1680363662513,1.14896526,1820.0,1819.8,0.824]
[1680363664112,2.11593522,1820.0,1819.8,0.824]
[1680363664317,1.0,1819.9,1819.8,0.824]
[1680363664707,1.43455616,1820.0,1819.8,0.824]
[1680363664912,2.11593956,1820.0,1819.8,0.824]
[1680363666109,1.43455616,1819.9,1819.8,0.824]
[1680363667115,1.43455616,1819.9,1819.7,0.824]
[1680363667319,1.1524645,1819.8,1819.7,0.824]
[1680363667823,1.1524645,1819.8,1819.7,6.90635814]
[1680363668018,1.43455616,1819.9,1819.7,6.90635814]
[1680363671615,1.1530251,1819.8,1819.7,6.90635814]
[1680363672323,1.43455616,1819.9,1819.7,6.90635814]
[1680363676025,1.15300301,1819.8,1819.7,6.90635814]
[1680363679817,1.15300301,1819.8,1819.7,7.90635814]
[1680363680226,1.15300301,1819.8,1819.7,6.90635814]
[1680363680531,1.15300301,1819.8,1819.7,7.90635814]
[1680363681335,1.15300301,1819.8,1819.7,11.11415814]
[1680363681532,1.15300301,1819.9,1819.7,11.11415814]
[1680363681832,1.15300301,1819.9,1819.8,1.822]
[1680363682035,1.15300301,1819.9,1819.8,0.822]
[1680363682835,1.15300301,1819.9,1819.8,1.648]
[1680363683034,1.15300301,1819.9,1819.8,7.82149975]
[1680363683234,1.15300301,1819.9,1819.8,8.82149975]
[1680363687634,1.15300301,1820.0,1819.8,8.82149975]
[1680363687832,1.15300301,1820.0,1819.9,5.0318]
[1680363688331,1.1525579,1820.0,1819.9,10.70100251]
[1680363689536,1.1525579,1820.0,1819.9,9.70100251]
[1680363700850,1.1525579,1820.0,1819.9,6.49320251]
[1680363701044,5.32366602,1820.1,1819.9,6.49320251]
[1680363701248,1.0,1820.0,1819.9,6.49320251]
[1680363701649,2.43455616,1820.0,1819.9,6.49320251]
[1680363705456,1.43455616,1820.0,1819.9,6.49320251]
[1680363705654,2.43455616,1820.0,1819.9,6.49320251]
[1680363706249,1.0,1820.0,1819.9,6.49320251]
[1680363707355,5.64235616,1820.1,1819.9,6.49320251]
[1680363707758,1.43455616,1820.0,1819.9,6.49320251]
[1680363707958,2.43455616,1820.0,1819.9,6.49320251]
[1680363709660,1.43455616,1820.0,1819.9,6.49320251]
[1680363711262,5.64235616,1820.1,1819.9,6.49320251]
[1680363711467,1.43455616,1820.0,1819.9,6.49320251]
[1680363711760,2.43455616,1820.0,1819.9,6.49320251]
[1680363712858,4.41081253,1820.0,1819.9,5.09526109]
[1680363713156,0.819,1819.9,1819.5,0.55944321]
[1680363713455,0.5761741,1819.6,1819.4,5.68531254]
[1680363713856,0.5761741,1819.6,1819.5,5.7736248]
[1680363716256,1.44043524,1819.6,1819.5,5.7736248]
[1680363717059,1.44043524,1819.6,1819.5,6.5916248]
[1680363719960,1.44043524,1819.6,1819.5,7.5916248]
[1680363720356,0.5761741,1819.6,1819.5,7.5916248]
[1680363720552,0.5761741,1819.6,1819.5,7.5976248]
[1680363721355,1.44043524,1819.7,1819.5,7.5976248]
[1680363721556,0.86426114,1819.7,1819.6,5.0318]
[1680363721958,1.44029474,1819.7,1819.6,10.92321944]
[1680363722162,0.86426114,1819.7,1819.6,10.92321944]
[1680363722360,1.44029357,1819.7,1819.6,10.92321944]
[1680363722559,0.86426114,1819.7,1819.6,10.92321944]
[1680363724171,1.44029202,1819.7,1819.6,10.92321944]
[1680363724564,0.86426114,1819.7,1819.6,10.92321944]
[1680363724860,1.44029619,1819.7,1819.6,10.92321944]
[1680363725257,0.86426114,1819.7,1819.6,10.92321944]
[1680363725464,1.44028905,1819.7,1819.6,10.92321944]
[1680363725761,0.57602791,1819.7,1819.6,10.92321944]
[1680363726063,1.44028905,1819.7,1819.6,10.92321944]
[1680363726262,1.4403075,1819.7,1819.6,7.71541944]
[1680363726770,0.86426114,1819.7,1819.6,10.92321944]
[1680363726962,0.86426114,1819.7,1819.6,11.73921944]
[1680363727164,1.44030767,1819.7,1819.6,11.73921944]
[1680363727664,0.86426114,1819.7,1819.6,11.73921944]
[1680363728269,1.44029675,1819.7,1819.6,11.73921944]
[1680363728568,0.86426114,1819.7,1819.6,10.73921944]
[1680363728869,1.44029634,1819.7,1819.6,10.73921944]
[1680363729866,0.86426114,1819.7,1819.6,10.73921944]
[1680363730260,1.44028923,1819.7,1819.6,10.73921944]
[1680363730666,0.86426114,1819.7,1819.6,10.73921944]
[1680363731466,0.86426114,1819.7,1819.6,7.53141944]
[1680363739570,4.36014819,1819.8,1819.6,5.89141944]
[1680363739772,1.0,1819.7,1819.6,5.89141944]
[1680363739973,1.0,1819.7,1819.5,6.98134803]
[1680363740169,1.44021616,1819.6,1819.5,6.98134803]
[1680363740878,0.8641297,1819.6,1819.5,6.98134803]
[1680363741874,1.44023832,1819.6,1819.5,6.98134803]
[1680363742477,0.8641297,1819.6,1819.5,6.98134803]
[1680363743472,1.44024389,1819.6,1819.5,6.98134803]
[1680363744175,1.44023236,1819.6,1819.5,6.98134803]
[1680363744373,0.8641297,1819.6,1819.5,6.98134803]
[1680363760394,0.86466105,1819.6,1819.5,6.98134803]
[1680363760692,2.15234819,1819.7,1819.5,6.98134803]
[1680363760884,2.15234819,1819.7,1819.6,0.818]
[1680363761381,2.15234819,1819.7,1819.6,7.14465578]
[1680363763098,1.15234819,1819.7,1819.6,7.14465578]
[1680363765093,2.15234819,1819.7,1819.6,7.14465578]
[1680363765395,1.15234819,1819.7,1819.6,7.14465578]
[1680363765698,1.0,1819.7,1819.6,7.14465578]
[1680363766602,2.44043524,1819.7,1819.4,1.37681995]
[1680363766801,0.86458763,1819.5,1819.4,1.37681995]
[1680363767104,0.86458763,1819.5,1819.4,0.55281995]
[1680363767296,0.86458763,1819.5,1819.4,6.3255603]
[1680363767502,1.86458763,1819.5,1819.4,6.3255603]
[1680363770007,1.86458763,1819.5,1819.3,0.818]
[1680363770210,0.57626903,1819.4,1819.3,0.818]
[1680363770401,1.57626903,1819.4,1819.3,0.818]
[1680363770905,4.78406903,1819.4,1819.3,0.818]
[1680363771299,3.78406903,1819.4,1819.3,0.818]
[1680363774004,4.60706903,1819.4,1819.2,1.61682045]
[1680363774204,1.0,1819.3,1819.1,2.2721854]
[1680363775109,4.60706903,1819.4,1819.1,2.2721854]
[1680363777014,3.78406903,1819.4,1819.1,2.2651854]
[1680363777212,3.78406903,1819.4,1819.1,3.89074027]
[1680363781506,1.0,1819.3,1819.1,3.89074027]
[1680363781711,1.0,1819.3,1819.1,2.2651854]
[1680363782106,1.0,1819.3,1819.1,1.4411854]
[1680363782314,1.57626903,1819.3,1819.1,2.2611854]
[1680363782609,1.57626903,1819.3,1819.1,0.82]
[1680363782808,2.44085666,1819.3,1819.1,0.82]
[1680363783014,0.57626903,1819.2,1819.1,0.82]
[1680363783816,0.86458763,1819.2,1819.1,0.82]
[1680363784712,0.57602387,1819.2,1819.1,0.82]
[1680363786815,1.40002387,1819.2,1819.0,1.62706843]
[1680363787020,1.40002387,1819.2,1818.9,4.57820897]
[1680363787621,1.40002387,1819.2,1819.0,6.30635702]
[1680363789221,1.0,1819.1,1819.0,6.30635702]
[1680363789529,2.40002387,1819.1,1818.9,0.54640897]
[1680363789729,4.60482387,1819.0,1818.6,1.4411854]
[1680363789932,0.824,1818.8,1818.6,1.4411854]
[1680363790631,0.824,1818.8,1818.7,6.09806698]
[1680363791329,0.82056163,1818.8,1818.7,6.09806698]
[1680363791718,0.85459078,1818.8,1818.7,6.09806698]
[1680363792527,0.85459078,1818.8,1818.5,8.10762763]
[1680363792730,0.85459078,1818.8,1818.5,7.10762763]
[1680363793226,0.85459078,1818.8,1818.6,6.02776453]
[1680363793430,0.85459078,1818.8,1818.6,7.02776453]
[1680363793632,0.85459078,1818.8,1818.6,6.02776453]
[1680363794333,0.85459078,1818.8,1818.6,7.02776453]
[1680363795135,0.85459078,1818.8,1818.6,6.02776453]
[1680363795936,0.85459078,1818.8,1818.6,7.02776453]
[1680363796624,0.85459078,1818.8,1818.6,6.02776453]
[1680363797128,0.03402915,1818.8,1818.6,6.84576453]
[1680363797527,4.0288,1819.0,1818.6,6.84576453]
[1680363797528,1.0,1818.9,1818.6,6.84576453]
[1680363802933,5.0288,1819.0,1818.6,6.84576453]
[1680363803138,1.0,1818.9,1818.6,6.84576453]
[1680363804243,5.0288,1819.0,1818.6,6.84576453]
[1680363805431,0.03334645,1818.9,1818.6,6.84576453]
[1680363806138,1.03334645,1818.9,1818.6,6.84576453]
[1680363806336,0.03334645,1818.9,1818.8,0.82]
[1680363806737,0.57602387,1819.2,1818.8,7.75825553]
[1680363806938,0.57602387,1819.2,1819.0,0.822]
[1680363807129,0.57602387,1819.3,1819.0,0.822]
[1680363807335,5.16362155,1819.4,1819.1,6.03477659]
[1680363807535,4.60482387,1819.4,1819.2,1.0]
[1680363808444,4.60482387,1819.4,1819.1,7.03477659]
[1680363809732,4.60482387,1819.4,1819.1,6.03477659]
[1680363810443,5.4694115,1819.4,1819.1,6.03477659]
[1680363811144,0.57602387,1819.3,1819.0,0.822]
[1680363811343,1.57602387,1819.3,1819.0,0.822]
[1680363811646,3.78382387,1819.2,1819.0,0.822]
[1680363811841,4.60482387,1819.2,1818.9,0.56054127]
[1680363812036,4.60482387,1819.2,1818.8,0.824]
[1680363812745,4.60482387,1819.2,1818.9,6.16025157]
[1680363816545,4.60482387,1819.2,1818.9,6.70293579]
[1680363817043,4.60782387,1819.2,1818.9,7.52293579]
[1680363820040,0.57602387,1819.1,1818.9,7.52293579]
[1680363824253,1.4406115,1819.1,1818.9,7.52293579]
[1680363825351,3.78382387,1819.0,1818.9,7.52293579]
[1680363825657,4.63741672,1819.0,1818.7,0.824]
[1680363825852,1.42961672,1819.0,1818.7,1.824]
[1680363826050,2.2616115,1819.0,1818.7,1.824]
[1680363826354,0.57602387,1818.9,1818.8,5.8814475]
[1680363830759,1.4406115,1818.9,1818.8,5.8814475]
[1680363831156,0.86458763,1818.9,1818.8,5.8814475]
[1680363831359,1.44058255,1818.9,1818.8,5.8814475]
[1680363832358,0.86458763,1818.9,1818.8,5.8814475]
[1680363836056,0.86458763,1818.9,1818.7,0.824]
[1680363836256,3.78391803,1818.8,1818.7,0.824]
[1680363837063,3.78391803,1818.8,1818.6,0.824]
[1680363837758,3.78391803,1818.8,1818.7,6.21635726]
[1680363839765,0.57611803,1818.8,1818.7,7.04035726]
[1680363839960,0.57611803,1818.9,1818.7,7.04035726]
[1680363840160,1.44070566,1818.9,1818.8,1.0]
[1680363840358,0.57611803,1818.9,1818.8,1.0]
[1680363840860,0.57611803,1818.9,1818.7,8.04035726]
[1680363841066,1.44070566,1818.9,1818.7,8.04035726]
[1680363841766,0.57611803,1818.9,1818.8,1.0]
[1680363842868,0.57611803,1818.9,1818.7,8.04035726]
[1680363843567,1.44070566,1818.9,1818.7,8.04035726]
[1680363847073,1.44070566,1818.9,1818.8,0.824]
[1680363847265,1.44070566,1818.9,1818.8,1.824]
[1680363847467,1.44070566,1818.9,1818.8,0.824]
[1680363848971,0.57611803,1818.9,1818.8,0.824]
[1680363849567,1.44070566,1818.9,1818.8,0.824]
[1680363849767,0.57611803,1818.9,1818.8,6.59733971]
[1680363850372,1.44070566,1818.9,1818.8,6.59733971]
[1680363850573,0.57611803,1818.9,1818.8,6.59733971]
[1680363853270,1.44070566,1818.9,1818.8,6.59733971]
[1680363853778,0.57611803,1818.9,1818.8,6.59733971]
[1680363853972,1.44070566,1818.9,1818.8,6.59733971]
[1680363854479,0.86458763,1818.9,1818.8,6.59733971]
[1680363860173,1.44084904,1818.9,1818.8,6.59733971]
[1680363860375,1.44084904,1818.9,1818.8,7.59733971]
[1680363860575,0.86458763,1818.9,1818.8,7.59733971]
[1680363861075,1.44088598,1818.9,1818.8,7.59733971]
[1680363861277,0.86458763,1818.9,1818.8,7.59733971]
[1680363862872,1.44096171,1818.9,1818.8,7.59733971]
[1680363863885,0.86458763,1818.9,1818.8,7.59733971]
[1680363866780,0.86458763,1818.9,1818.8,6.59733971]
[1680363870291,1.15278351,1819.0,1818.8,6.59733971]
[1680363870491,1.15278351,1819.0,1818.9,0.824]
[1680363876597,1.14810785,1819.0,1818.9,0.824]
[1680363892927,1.14810785,1819.0,1818.9,7.15983161]
[1680363896532,0.86513217,1819.0,1818.9,7.15983161]
[1680363896834,0.86513217,1819.0,1818.9,8.15983161]
[1680363897525,0.86513217,1819.0,1818.9,7.15983161]
[1680363899731,0.86513217,1819.0,1818.9,8.15983161]
[1680363900134,0.86513217,1819.0,1818.9,7.15983161]
[1680363911338,0.86513217,1819.0,1818.9,8.15983161]
[1680363914744,0.86513217,1819.0,1818.9,7.15983161]
[1680363915938,1.15337677,1819.2,1819.0,6.493]
[1680363916144,1.15337677,1819.2,1819.1,7.957]
[1680363916339,1.15337677,1819.3,1819.1,16.91902381]
[1680363916644,1.15337677,1819.3,1819.2,7.317]
[1680363917144,1.15337677,1819.4,1819.3,0.824]
[1680363917343,4.64823524,1819.5,1819.3,0.824]
[1680363917542,3.2078,1819.5,1819.4,6.0966805]
[1680363917842,3.88937202,1819.5,1819.3,0.824]
[1680363918044,2.44077452,1819.4,1819.3,0.824]
[1680363918645,2.44077452,1819.4,1819.3,6.60004958]
[1680363918839,4.64857452,1819.5,1819.3,6.60004958]
[1680363919345,1.44077452,1819.4,1819.3,6.60004958]
[1680363920740,4.64857452,1819.5,1819.3,6.60004958]
[1680363920941,1.15227431,1819.4,1819.3,6.60004958]
[1680363921445,4.64857452,1819.5,1819.3,6.60004958]
[1680363921943,1.0,1819.4,1819.3,6.60004958]
[1680363922940,4.64857452,1819.5,1819.3,6.60004958]
[1680363923643,1.15216719,1819.4,1819.3,6.60004958]
[1680363923839,2.15216719,1819.4,1819.3,6.60004958]
[1680363924447,1.15216719,1819.4,1819.3,6.60004958]
[1680363937751,2.15216719,1819.4,1819.3,5.77604958]
[1680363937953,2.44077452,1819.4,1819.1,1.36200123]
[1680363938157,3.2078,1819.2,1819.1,1.36200123]
[1680363939852,1.151915,1819.3,1819.1,1.36200123]
[1680363944158,4.359715,1819.2,1818.6,10.6632854]
[1680363944359,0.57620893,1818.9,1818.7,0.822]
[1680363944555,1.57620893,1818.9,1818.7,0.822]
[1680363944760,1.57620893,1818.9,1818.8,6.06515215]
[1680363945651,0.57620893,1818.9,1818.8,6.06515215]
[1680363950265,0.57620893,1818.9,1818.8,6.88915215]
[1680363954074,0.57620893,1818.9,1818.8,7.88915215]
[1680363955469,0.57620893,1818.9,1818.8,8.70615215]
[1680363955671,0.57620893,1819.0,1818.8,8.70615215]
[1680363955875,0.57620893,1819.0,1818.9,1.824]
[1680363956268,0.57620893,1819.0,1818.9,8.14917581]
[1680363957375,0.57620893,1819.1,1818.9,8.14917581]
[1680363957578,0.57620893,1819.1,1819.0,5.0258]
[1680363957877,0.57582237,1819.1,1819.0,5.0258]
[1680363958078,0.57582237,1819.1,1819.0,11.03192011]
[1680363958575,1.15241787,1819.3,1819.0,7.82412011]
[1680363958775,0.57584314,1819.1,1819.0,11.03192011]
[1680363966787,0.57584314,1819.1,1819.0,10.03192011]
[1680363968378,0.57584314,1819.1,1819.0,6.82412011]
[1680363970689,0.57584314,1819.2,1819.0,10.85592011]
[1680363970896,1.15241787,1819.3,1819.1,1.636]
[1680363971182,2.15241787,1819.4,1819.2,6.94488192]
[1680363971384,2.15241787,1819.4,1819.3,0.824]
[1680363971785,2.15241787,1819.4,1819.3,6.95743565]
[1680363972285,5.64857452,1819.5,1819.3,6.95743565]
[1680363973695,1.0,1819.4,1819.3,6.95743565]
[1680363977092,2.44077452,1819.4,1819.3,6.13343565]
[1680363977483,2.44077452,1819.4,1819.2,6.47587785]
[1680363977687,1.15195161,1819.3,1819.2,6.47587785]
[1680363983088,4.35975161,1819.3,1819.2,6.47587785]
[1680363983493,3.2078,1819.3,1819.0,0.818]
[1680363983793,4.07193894,1819.1,1819.0,0.818]
[1680363986892,0.86413894,1819.1,1819.0,0.818]
[1680363987096,0.86413894,1819.1,1818.9,1.824]
[1680363987288,0.57612383,1819.0,1818.9,0.824]
[1680363987895,0.57612383,1819.0,1818.9,6.58550608]
[1680363991100,0.57612383,1819.0,1818.9,7.58550608]
[1680363995399,0.57612383,1819.0,1818.9,6.58550608]
[1680363995603,0.86413894,1819.0,1818.9,6.58550608]
[1680364001812,5.35998526,1819.1,1818.9,6.58550608]
[1680364002007,1.0,1819.0,1818.9,6.58550608]
[1680364002413,5.35998526,1819.1,1818.9,6.58550608]
[1680364002709,4.35998526,1819.1,1818.9,6.58550608]
[1680364004215,0.86470828,1819.0,1818.9,6.58550608]
[1680364007115,0.86470828,1819.0,1818.9,6.58150608]
[1680364017116,1.4410548,1819.0,1818.9,6.58550608]
[1680364017313,0.86470828,1819.0,1818.9,6.58550608]
[1680364018627,0.86470828,1819.0,1818.9,5.76150608]